Cogmind - Beta 13 @@@ ROGUE MODE // 2024.03.05 @ 18:50:24 Player: Qwertychrish Result: Destroyed by B-86 Titan with Matter Neutralizer Performance ------------- Evolutions (5) 2500 Regions Visited (11) 2200 Robots Destroyed (78) 390 Value Destroyed (2651) 2651 Prototype IDs (3) 60 Alien Tech Used (0) 0 Bonus (1870) 1870 TOTAL SCORE: 9671 Bonus ------- High Alert Combat Kills 206 Follower Combat Kills 697 Met Warlord at Base 500 MAIN.C Attacked Warlord 500 Friendly Fire -33 Cogmind --------- Core Integrity 0/1000 Matter 280/300 Energy 88/100 System Corruption 5% Temperature Cool (9) Movement Core (50) Location -4/Proximity Caves Parts ------- > --- POWER (2) -------- (None) > --- PROPULSION (6) --- Improved Treads Centrium Wheel > --- UTILITY (7) ------ Advanced Targeting Computer > --- WEAPON (2) ------- (None) > --- INVENTORY (5) ---- (None) Peak State ------------ > --- POWER ------------ Fission Core Neutrino Core > --- PROPULSION ------- Flexi-carbon Leg Armored Leg Armored Leg Armored Leg Armored Leg Armored Leg > --- UTILITY ---------- Improved Trap Scanner Active Sensor Suite Advanced Targeting Computer Advanced Hacking Suite Long-range Tractor Beam > --- WEAPON ----------- RU-N14's Throwing Claymores v3 RU-N14's Throwing Claymores v3 > --- INVENTORY -------- Hybrid Deuterium Engine Nuclear Pulse Thruster Nuclear Pulse Thruster Nuclear Pulse Array [Rating: 105] Favorites ----------- Power Neutrino Core Engine Backup Power III Power Core Neutrino Core Reactor Light Antimatter Reactor Propulsion Armored Leg Treads Armored Treads Leg Armored Leg Wheel Wheel Flight Unit Cesium-ion Thruster Utility Visual Processing Unit Device Active Sensor Suite Storage Medium Storage Unit Processor Visual Processing Unit Hackware Hacking Suite Protection Hardened Light Armor Plating Weapon Autogun Energy Gun Beam Rifle Ballistic Gun Autogun Ballistic Cannon Light Cannon Launcher Mini Grenade Launcher Special Weapon RU-N14's Throwing Claymores v3 Impact Weapon Heavy Hammer Build | -11 -10 -9 -8 -7 -6 -6 -6 -5 -5 -5 -4 ------- Run | Yrd Mat Mat Mat Fac Fac Was Fac Fac Upp War Pro Slots Evolved 10 | . . 2 2 2 2 . . 2 . . . Power 1 | . . . . . 1 . . . . . . Propulsion 4 | . . . 1 . 1 . . 2 . . . Utility 5 | . . 2 1 2 . . . . . . . Weapon . | . . . . . . . . . . . . Parts Attached 152 | 6 20 8 37 34 13 3 7 12 . 5 7 Power 22 | 1 3 2 5 4 2 . 2 1 . 1 1 Engine 8 | 1 3 2 1 . . . 1 . . . . Core 12 | . . . 4 4 2 . 1 1 . . . Reactor 2 | . . . . . . . . . . 1 1 Propulsion 43 | 2 7 2 8 9 6 . . 3 . 1 5 Treads 5 | . 1 . 2 1 . . . . . . 1 Leg 27 | . 6 2 6 5 4 . . 3 . . 1 Wheel 6 | 2 . . . 3 . . . . . . 1 Hover . | . . . . . . . . . . . . Flight 5 | . . . . . 2 . . . . 1 2 Utility 45 | 1 3 3 9 12 5 1 5 5 . . 1 Device 20 | . 2 . 3 5 3 1 2 3 . . 1 Storage 4 | 1 1 . . 2 . . . . . . . Processor 9 | . . 1 1 3 1 . 2 1 . . . Hackware 2 | . . . . . 1 . . 1 . . . Protection 10 | . . 2 5 2 . . 1 . . . . Artifact . | . . . . . . . . . . . . Weapon 42 | 2 7 1 15 9 . 2 . 3 . 3 . Energy Gun 6 | 1 1 . 1 2 . . . . . 1 . Energy Cannon . | . . . . . . . . . . . . Ballistic Gun 19 | 1 6 1 7 1 . 2 . 1 . . . Ballistic Cannon 7 | . . . 2 3 . . . 2 . . . Launcher 4 | . . . 3 1 . . . . . . . Special Weapon 2 | . . . . . . . . . . 2 . Impact Weapon 4 | . . . 2 2 . . . . . . . Slashing Weapon . | . . . . . . . . . . . . Piercing Weapon . | . . . . . . . . . . . . Special Melee Weapon . | . . . . . . . . . . . . Unidentified Prototypes 3 | . . . 1 1 . . . . . 1 . Parts Lost 65 | . 3 . 9 22 5 . 6 2 . 10 8 Power 11 | . 1 . 1 4 1 . 1 . . 2 1 Propulsion 23 | . 1 . 3 6 3 . . . . 3 7 Utility 19 | . . . 4 6 1 . 3 1 . 4 . Weapon 12 | . 1 . 1 6 . . 2 1 . 1 . Highest Loss Streak 17 | . 3 . 5 17 3 . 2 2 . 10 6 To Critical Strikes 1 | . . . . . . . . . . 1 . Average Slot Usage (%) 82 | . 93 99 92 73 63 90 94 83 82 86 29 Engine 3 | . 12 11 3 . . 9 11 4 . . . Core 4 | . . . 5 5 1 . 1 5 11 10 . Treads 1 | . 1 . 4 . 4 . . . . . . Leg 22 | . 10 22 21 14 10 26 26 34 35 34 9 Wheel 1 | . 13 . . 3 . . . . . . . Device 11 | . 12 11 7 7 17 16 11 13 17 16 . Storage 4 | . 14 11 9 5 . . . . . . . Processor 12 | . . 11 13 17 20 20 21 7 5 5 5 Hackware 2 | . . . . . 4 6 6 5 5 4 . Protection 3 | . . 10 9 4 . . 2 . . . . Energy Gun 2 | . 7 . 3 4 . 4 . . . 1 . Ballistic Gun 6 | . 18 22 11 . . 5 12 3 5 1 . Ballistic Cannon 1 | . . . 1 3 . . . 3 . . . Naked Turns . | . . . . . . . . . . . . Heaviest Build 52 | 13 20 27 43 40 7 21 41 44 37 52 19 Greatest Support 100 | 26 26 30 45 37 12 73 73 100 100 100 19 Greatest Overweight (x) 4 | 4 4 1 2 3 . 2 . . . . . Average Overweight (x) . | 1 . . . . . . . . . . . Largest Inventory Capacity 15 | 8 10 10 10 15 5 5 5 5 5 5 5 Average Capacity 7 | 7 8 10 10 10 5 5 5 5 5 5 5 Most Carried 13 | 6 10 10 10 13 5 5 5 5 5 5 2 Average Carried 6 | 3 7 9 9 9 4 4 4 4 5 4 . Final Capacity 10 | 8 10 10 10 5 5 5 5 5 5 5 5 Final Carried 10 | 6 10 10 10 5 4 4 5 5 5 2 . Class Distribution -------------------- 44% | Mutant 21% | Skirmisher 14% | Scavenger-Mutant 9% | Scavenger-Skirmisher 5% | Scout 4% | Scavenger-Assassin Dominant Class ---------------- Mutant | -10/Materials Mutant | -9/Materials Scavenger-Mutant | -8/Materials Scavenger-Skirmisher | -7/Factory Scout | -6/Factory Mutant | -6/Waste Skirmisher | -6/Factory Mutant | -5/Factory Mutant | -5/Upper Caves Skirmisher | -5/Warlord Mutant | -4/Proximity Caves Resources | -11 -10 -9 -8 -7 -6 -6 -6 -5 -5 -5 -4 ----------- Run | Yrd Mat Mat Mat Fac Fac Was Fac Fac Upp War Pro Matter Collected 3068 | 181 245 324 978 216 119 310 290 198 . 179 28 Remotely 711 | . . . 412 . . . . 120 . 179 . Salvage Created 2943 | . 321 293 1437 467 . . 283 142 . . . Parts 167 | . 26 21 77 19 . . 17 7 . . . Haulers Intercepted 2 | . 1 . . . . . . 1 . . . Recyclers Shooed . | . . . . . . . . . . . . Parts Field Recycled . | . . . . . . . . . . . . Retrieved Matter . | . . . . . . . . . . . . Parts Self-Destructed 4 | . . . . . . . . . . . 4 Prevented . | . . . . . . . . . . . . Kills | -11 -10 -9 -8 -7 -6 -6 -6 -5 -5 -5 -4 ------- Run | Yrd Mat Mat Mat Fac Fac Was Fac Fac Upp War Pro Combat Hostiles Destroyed 63 | . 12 7 26 11 . . 5 2 . . . Melee 2 | . . . . 2 . . . . . . . Guns 48 | . 10 7 22 2 . . 5 2 . . . Cannons 7 | . . . 2 5 . . . . . . . AOE 4 | . 2 . 1 1 . . . . . . . Classes Destroyed 15 | . 3 4 6 1 . . 1 . . . . Worker 6 | . . . 3 3 . . . . . . . Builder 2 | . . 1 1 . . . . . . . . Hauler 2 | . 1 . . . . . . 1 . . . Recycler 2 | . . . 1 1 . . . . . . . Watcher 2 | . . 1 1 . . . . . . . . Swarmer 18 | . 9 3 . 3 . . 3 . . . . Grunt 25 | . 3 2 14 6 . . . . . . . Brawler 1 | . . 1 . . . . . . . . . Duelist 3 | . . . 3 . . . . . . . . Sentry 7 | . . 1 5 . . . 1 . . . . Specialist 3 | . . . 2 . . . 1 . . . . Hunter 1 | . . . 1 . . . . . . . . Programmer 4 | . . . . 2 . . . 2 . . . Heavy 1 | . . . 1 . . . . . . . . Surgeon 1 | . . . . . . . 1 . . . . Best Kill Streak 7 | . 6 3 7 6 . . 3 2 . . . Combat Bots Only 6 | . 6 3 4 5 . . 3 2 . . . Max Kills in Single Turn 5 | . 2 1 5 3 . . 1 1 . . . Gunslinging 1 | . . . 1 . . . . . . . . Exploded 2 | . 2 . 1 1 . . . . . . . Melee 1 | . . . . 1 . . . . . . . Uniques/NPCs Destroyed . | . . . . . . . . . . . . Combat | -11 -10 -9 -8 -7 -6 -6 -6 -5 -5 -5 -4 -------- Run | Yrd Mat Mat Mat Fac Fac Was Fac Fac Upp War Pro Hostile Shots Fired 1212 | . 41 32 220 428 104 . 96 23 . 130 138 Missed 425 | . 5 9 57 174 41 . 34 3 . 39 63 Damage Taken 11936 | . 358 221 2766 2837 948 . 1262 500 . 1842 1202 Core 2358 | . 56 10 262 692 219 . 93 53 . 345 628 Absorbed by Shields 17 | . . . . 17 . . . . . . . Redirected to Shielding 111 | . . . . . . . 111 . . . . Regen/Repaired (Parts) 729 | . . . . 35 . 89 288 . . 317 . Core Remaining (%) 65 | 100 77 97 52 1 . . 63 . . . . Volleys Fired 222 | . 26 18 101 38 . . 20 19 . . . Largest 2 | . 2 2 2 2 . . 2 2 . . . Hottest 104 | . 60 46 91 104 . . 80 91 . . . Shots Fired 419 | . 52 36 192 61 . . 40 37 1 . . Gun 357 | . 52 36 180 29 . . 40 19 1 . . Cannon 57 | . . . 9 30 . . . 18 . . . Launcher 5 | . . . 3 2 . . . . . . . Special . | . . . . . . . . . . . . Kinetic 350 | . 32 36 168 36 . . 40 37 1 . . Thermal 44 | . . . 21 23 . . . . . . . Explosive 4 | . . . 2 2 . . . . . . . Electromagnetic 21 | . 20 . 1 . . . . . . . . Robot Hit Streak 24 | . 19 9 19 24 . . 7 9 . . . Robot Miss Streak 3 | . 3 3 2 2 . . 2 1 . . . Penetration Max 1 | . . . . . . . 1 . . . . Secondary Targets 2 | . . . 2 . . . . . . . . Max Gunslinging Chain 1 | . . . 1 . . . . . . . . Shots Hit Robots 327 | . 31 24 161 58 . . 24 29 . . . Core Hits 148 | . 18 13 64 30 1 . 12 9 . 1 . Critical Kills 6 | . . . . . . . 5 1 . . . Critical Parts Destroyed 10 | . . . 2 2 . . 2 4 . . . Critical Strikes 21 | . . . 3 6 . . 7 5 . . . Burn 3 | . . . 1 2 . . . . . . . Destroy 14 | . . . 2 . . . 7 5 . . . Blast 2 | . . . . 2 . . . . . . . Smash 2 | . . . . 2 . . . . . . . Melee Attacks 32 | . . . 6 26 . . . . . . . Impact 32 | . . . 6 26 . . . . . . . Slashing . | . . . . . . . . . . . . Piercing . | . . . . . . . . . . . . Sneak Attacks 1 | . . . . 1 . . . . . . . Combat Hostiles . | . . . . . . . . . . . . Follow-up Attacks . | . . . . . . . . . . . . Damage Inflicted 6505 | . 426 364 2927 1919 16 . 220 628 . 5 . Guns 4012 | . 348 364 2356 336 . . 220 388 . . . Cannons 1052 | . . . 127 685 . . . 240 . . . Explosions 956 | . 78 . 385 493 . . . . . . . Melee 464 | . . . 59 405 . . . . . . . Ramming 21 | . . . . . 16 . . . . 5 . Kinetic 4369 | . 165 364 2239 753 . . 220 628 . . . Thermal 857 | . 78 . 447 332 . . . . . . . Explosive 225 | . . . . 225 . . . . . . . Electromagnetic 569 | . 183 . 182 204 . . . . . . . Impact 464 | . . . 59 405 . . . . . . . Slashing . | . . . . . . . . . . . . Piercing . | . . . . . . . . . . . . Highest Corruption 5 | . . . . 5 . . 3 4 4 5 5 Average Corruption 2 | . . . . 1 . . 1 3 4 4 5 Corruption Purged . | . . . . . . . . . . . . Corruption Blocked . | . . . . . . . . . . . . Effects 30 | . . . . 9 . . 2 7 4 2 6 Message Errors 5 | . . . . 1 . . . 3 1 . . Matter Fused 7 | . . . . 3 . . 1 2 . . 1 Heat Flow Errors 7 | . . . . 2 . . 1 1 1 2 . Energy Discharges 2 | . . . . 1 . . . . . . 1 Parts Rejected 2 | . . . . 1 . . . . . . 1 Data Loss (minor) 4 | . . . . . . . . 1 1 . 2 Misfires 2 | . . . . 1 . . . . 1 . . Alerts 1 | . . . . . . . . . . . 1 Overload Shots . | . . . . . . . . . . . . Overflow Damage 210 | . 36 . 24 140 . . . 10 . . . Projectiles 10 | . . . . . . . . 10 . . . Explosions 77 | . 36 . 24 17 . . . . . . . Melee 123 | . . . . 123 . . . . . . . Knockbacks 13 | . . . 3 8 . . . 2 . . . Impact 4 | . . . 1 3 . . . . . . . Kinetic 9 | . . . 2 5 . . . 2 . . . Secondary . | . . . . . . . . . . . . Self-Inflicted Damage 208 | . 40 . 60 101 7 . . . . . . Shots 6 | . 1 . 3 2 . . . . . . . Rammed 2 | . . . . . 2 . . . . . . Targets Rammed 5 | . . . . . 2 . . . . 3 . Kicked 3 | . . . . . . . . . . 3 . Crushed . | . . . . . . . . . . . . Highest Temperature 476 | . 102 32 476 315 . . 199 154 186 115 14 Average Temperature 99 | . 30 12 129 116 . . 85 33 85 70 14 Received Heat Transfer 1879 | . 66 57 810 693 60 . 75 12 . . 106 Effects 4 | . . . 4 . . . . . . . . Shutdowns 2 | . . . 2 . . . . . . . . Energy Bleed 1 | . . . 1 . . . . . . . . Short Circuit 1 | . . . 1 . . . . . . . . Siege Activations . | . . . . . . . . . . . . Robots Corrupted . | . . . . . . . . . . . . Combat Hostiles . | . . . . . . . . . . . . Parts Fried 4 | . . . 2 2 . . . . . . . Impact Corruptions 7 | . . . 1 6 . . . . . . . Robots Melted . | . . . . . . . . . . . . Combat Hostiles . | . . . . . . . . . . . . Parts Melted 2 | . . . 1 1 . . . . . . . Heat Transferred 2017 | . 150 . 1003 864 . . . . . . . Parts Sabotaged . | . . . . . . . . . . . . Parts Stolen . | . . . . . . . . . . . . Parts Stripped . | . . . . . . . . . . . . Power Chain Reactions 5 | . 1 . 3 1 . . . . . . . Alert | -11 -10 -9 -8 -7 -6 -6 -6 -5 -5 -5 -4 ------- Run | Yrd Mat Mat Mat Fac Fac Was Fac Fac Upp War Pro Peak Influence 796 | . 367 425 571 441 295 103 796 380 . . . Initial 380 | . . 154 179 158 215 103 72 380 . . . Average 246 | . 217 275 335 165 202 103 395 190 . . . Maximum Alert Level 3 | . 1 2 2 2 1 . 3 1 . . . Low Security (%) 39 | 100 41 17 12 64 15 100 35 50 . . . Level 1 48 | . 58 79 58 31 84 . 31 50 . . . Level 2 9 | . . 3 28 3 . . 11 . . . . Level 3 2 | . . . . . . . 21 . . . . Level 4 . | . . . . . . . . . . . . Level 5 . | . . . . . . . . . . . . High Security . | . . . . . . . . . . . . Max Security . | . . . . . . . . . . . . Squads Dispatched 35 | . 2 2 6 8 1 . 11 4 . . 1 Investigation 5 | . . . . 2 . . 1 2 . . . Extermination 4 | . . . . 2 . . . 2 . . . Reinforcement 18 | . 2 2 5 1 1 . 7 . . . . Assault 1 | . . . . . . . . . . . 1 Garrison 7 | . . . 1 3 . . 3 . . . . Intercept . | . . . . . . . . . . . . Searches Triggered . | . . . . . . . . . . . . Construction Impeded 1 | . . . 1 . . . . . . . . Haulers Reinforced 1 | . . . . . . . 1 . . . . Active Scanning Responses 2 | . . . . 1 . . . 1 . . . Cargo Convoy Interrupts . | . . . . . . . . . . . . Stealth | -11 -10 -9 -8 -7 -6 -6 -6 -5 -5 -5 -4 --------- Run | Yrd Mat Mat Mat Fac Fac Was Fac Fac Upp War Pro Distress Signals 8 | . 1 1 3 1 1 . . . . 1 . Communications Jammed . | . . . . . . . . . . . . Distress Signals . | . . . . . . . . . . . . Times Spotted 221 | . 19 11 35 35 29 . 25 5 . 38 24 Peak Tracking Total 18 | . 4 5 5 7 12 . 7 5 . 18 14 Tactical Retreats 22 | . 2 1 . 8 6 . 1 . . 1 3 Traps | -11 -10 -9 -8 -7 -6 -6 -6 -5 -5 -5 -4 ------- Run | Yrd Mat Mat Mat Fac Fac Was Fac Fac Upp War Pro Traps Triggered 6 | . 4 . . . 2 . . . . . . Indirectly . | . . . . . . . . . . . . Trap Hack Attempts . | . . . . . . . . . . . . Triggered . | . . . . . . . . . . . . Disarmed 1 | . . . . . . . . 1 . . . Reprogrammed . | . . . . . . . . . . . . Reused . | . . . . . . . . . . . . Traps Extracted . | . . . . . . . . . . . . Installed . | . . . . . . . . . . . . Triggered 14 | . . . . . . . . . . 14 . Machines | -11 -10 -9 -8 -7 -6 -6 -6 -5 -5 -5 -4 ---------- Run | Yrd Mat Mat Mat Fac Fac Was Fac Fac Upp War Pro Machines Disabled 12 | . . . . 5 . . 7 . . . . Max in Single Turn 3 | . . . . 3 . . . . . . . Machines Repaired . | . . . . . . . . . . . . Machines Dismantled . | . . . . . . . . . . . . Machines Sabotaged . | . . . . . . . . . . . . Overloaded Fab Kills . | . . . . . . . . . . . . Hacking | -11 -10 -9 -8 -7 -6 -6 -6 -5 -5 -5 -4 --------- Run | Yrd Mat Mat Mat Fac Fac Was Fac Fac Upp War Pro Machines Accessed 20 | . 1 3 3 6 1 . 1 4 . 1 . Terminals 11 | . 1 3 3 . 1 . 1 2 . . . Fabricators 2 | . . . . 1 . . . 1 . . . Repair Stations 1 | . . . . 1 . . . . . . . Recycling Units 2 | . . . . 2 . . . . . . . Scanalyzers 3 | . . . . 2 . . . 1 . . . Garrison Access . | . . . . . . . . . . . . Total Hacks 62 | . 2 8 9 26 3 . 3 10 . 1 . Successful 46 | . 2 7 4 21 2 . 3 6 . 1 . Failed 16 | . . 1 5 5 1 . . 4 . . . Catastrophic 3 | . . . 1 . . . . 2 . . . Database Lockouts . | . . . . . . . . . . . . Manual 18 | . 1 4 7 . 1 . . 5 . . . Terminals 30 | . 2 8 9 . 3 . 3 5 . . . Fabricators 5 | . . . . 4 . . . 1 . . . Repair Stations 3 | . . . . 3 . . . . . . . Recycling Units 3 | . . . . 3 . . . . . . . Scanalyzers 20 | . . . . 16 . . . 4 . . . Garrison Access . | . . . . . . . . . . . . Terminal Hacks 15 | . 1 4 2 . 2 . 3 2 . 1 . Record 4 | . . . . . 1 . 3 . . . . Robot Analysis 1 | . . 1 . . . . . . . . . Open Door 1 | . . . . . . . . . . 1 . Alert Level 1 | . . . 1 . . . . . . . . Unreport Threat 3 | . . . 1 . 1 . . 1 . . . Locate Traps 1 | . . 1 . . . . . . . . . Disarm Traps 1 | . . . . . . . . 1 . . . Zone Layout 3 | . 1 2 . . . . . . . . . Fabricator Hacks 2 | . . . . 2 . . . . . . . Load Schematic 1 | . . . . 1 . . . . . . . Build 1 | . . . . 1 . . . . . . . Repair Station Hacks 2 | . . . . 2 . . . . . . . Scan Component 1 | . . . . 1 . . . . . . . Repair 1 | . . . . 1 . . . . . . . Recycling Unit Hacks 2 | . . . . 2 . . . . . . . Retrieve Components 2 | . . . . 2 . . . . . . . Scanalyzer 19 | . . . . 15 . . . 4 . . . Insert Component 9 | . . . . 7 . . . 2 . . . Analyze 10 | . . . . 8 . . . 2 . . . Garrison Access Hacks . | . . . . . . . . . . . . Unauthorized Hacks 6 | . 1 3 2 . . . . . . . . Terminals 6 | . 1 3 2 . . . . . . . . Track 6 | . 1 3 2 . . . . . . . . Fabricators . | . . . . . . . . . . . . Repair Stations . | . . . . . . . . . . . . Recycling Units . | . . . . . . . . . . . . Scanalyzers . | . . . . . . . . . . . . Garrison Access . | . . . . . . . . . . . . Data Cores Recovered . | . . . . . . . . . . . . Used . | . . . . . . . . . . . . Hacking Detections 17 | . 1 2 3 5 1 . 1 4 . . . Full Trace Events 2 | . . . . 1 . . . 1 . . . Feedback Events . | . . . . . . . . . . . . Feedback Blocked . | . . . . . . . . . . . . Robot Schematics Acquired . | . . . . . . . . . . . . Robots Built . | . . . . . . . . . . . . Authchips . | . . . . . . . . . . . . Time . | . . . . . . . . . . . . Total Robot Build Rating . | . . . . . . . . . . . . Part Schematics Acquired 9 | . . . . 7 . . . 2 . . . Parts Built 2 | . . . . 2 . . . . . . . Authchips . | . . . . . . . . . . . . Time 73 | . . . . 73 . . . . . . . Total Part Build Rating 6 | . . . . 6 . . . . . . . Parts Repaired 1 | . . . . 1 . . . . . . . Time 26 | . . . . 26 . . . . . . . Parts Recycled . | . . . . . . . . . . . . Recycled Matter . | . . . . . . . . . . . . Retrieved Matter . | . . . . . . . . . . . . Retrieved Components 12 | . . . . 12 . . . . . . . Parts Scanalyzed 9 | . . . . 7 . . . 2 . . . Part Schematics Acquired 9 | . . . . 7 . . . 2 . . . Parts Damaged 1 | . . . . 1 . . . . . . . Bothacking | -11 -10 -9 -8 -7 -6 -6 -6 -5 -5 -5 -4 ------------ Run | Yrd Mat Mat Mat Fac Fac Was Fac Fac Upp War Pro Used RIF Installer . | . . . . . . . . . . . . Robots Hacked . | . . . . . . . . . . . . Non-combat . | . . . . . . . . . . . . Combat . | . . . . . . . . . . . . Robot Hacks Applied . | . . . . . . . . . . . . Relay Couplers Released . | . . . . . . . . . . . . Fabnet Peak Effective % . | . . . . . . . . . . . . Robots Rewired . | . . . . . . . . . . . . Allies Hacked . | . . . . . . . . . . . . Hacks Repelled . | . . . . . . . . . . . . Allies | -11 -10 -9 -8 -7 -6 -6 -6 -5 -5 -5 -4 -------- Run | Yrd Mat Mat Mat Fac Fac Was Fac Fac Upp War Pro Total Allies 20 | . . . . . . 20 . . . . . Largest Group 20 | . . . . . . 20 20 . . . . Highest-Rated Group 745 | . . . . . . 745 744 . . . . Highest-Rated Ally 50 | . . . . . . 50 50 . . . . Total Orders . | . . . . . . . . . . . . Ally Attacks 114 | . . . . . . . 114 . . . . Total Damage 3612 | . . . . . . . 3612 . . . . Kills 26 | . . . . . . . 26 . . . . Allies Corrupted . | . . . . . . . . . . . . Allies Melted . | . . . . . . . . . . . . Intel | -11 -10 -9 -8 -7 -6 -6 -6 -5 -5 -5 -4 ------- Run | Yrd Mat Mat Mat Fac Fac Was Fac Fac Upp War Pro Robot Analysis Total 1 | . . 1 . . . . . . . . . Derelict Logs Recovered 1 | . . . . . . . . . . . 1 Drone Launches . | . . . . . . . . . . . . Drone Recoveries . | . . . . . . . . . . . . Exploration | -11 -10 -9 -8 -7 -6 -6 -6 -5 -5 -5 -4 ------------- Run | Yrd Mat Mat Mat Fac Fac Was Fac Fac Upp War Pro Turns Passed 6795 | 71 399 302 1309 1302 498 196 701 800 236 774 207 Spaces Moved 5188 | 39 243 181 624 1024 646 222 517 538 197 627 330 Core 1126 | 23 4 . . 248 539 173 . . . . 139 Treads 54 | . . . 54 . . . . . . . . Legs 3367 | . 97 181 570 604 . 49 517 538 197 614 . Wheels 330 | 16 142 . . 172 . . . . . . . Hover . | . . . . . . . . . . . . Flight 311 | . . . . . 107 . . . . 13 191 Fastest Speed 37 | 50 90 120 120 50 50 50 120 120 120 70 37 Average Speed 102 | 143 106 120 144 94 52 71 120 120 120 119 57 Slowest Speed 330 | 250 250 190 260 330 65 150 120 120 120 120 70 Overloaded Moves . | . . . . . . . . . . . . Propulsion Burnouts . | . . . . . . . . . . . . Robots Hopped . | . . . . . . . . . . . . Cave-ins Triggered . | . . . . . . . . . . . . Exploration Rate (%) 38 | 4 37 17 58 31 27 83 23 16 19 81 60 Regions Visited 11 Branch Regions 3 Pre-discovered Areas . | . . . . . . . . . . . . Known Exits Taken 3 | . . . . . . . 1 1 1 . . Unknown Exits Taken 6 | 1 1 1 1 1 . . . . . 1 . Scrap Searched 2 | . . . . . . . . . . . 2 Spaces Dug 9 | . . . 2 7 . . . . . . . Terrain Destroyed 85 | . 3 . 29 51 . . 2 . . . . Melee 9 | . . . 2 7 . . . . . . . Projectile 2 | . . . . 2 . . . . . . . AOE 72 | . 3 . 27 42 . . . . . . . Terrain Rammed . | . . . . . . . . . . . . Walls Destroyed . | . . . . . . . . . . . . Machines Disabled . | . . . . . . . . . . . . Actions | -11 -10 -9 -8 -7 -6 -6 -6 -5 -5 -5 -4 --------- Run | Yrd Mat Mat Mat Fac Fac Was Fac Fac Upp War Pro Total 6217 | 50 337 243 865 1248 807 259 558 655 196 653 346 Wait 459 | . 24 23 60 89 135 24 3 80 . 13 8 Move 5178 | 38 242 180 623 1023 646 221 516 537 196 626 330 Hop . | . . . . . . . . . . . . Pick Up 77 | 6 14 6 14 21 4 3 4 4 . 1 . Fast Attach 69 | 6 12 . 8 15 9 3 5 3 . 3 5 Attach 41 | . 3 2 12 13 3 . . 4 . 2 2 Detach 6 | . . . 4 1 1 . . . . . . Swap 42 | . 5 6 17 6 1 . 2 5 . . . Drop 83 | . 11 8 20 16 6 5 8 3 . 5 1 Fire 222 | . 26 18 101 38 . . 20 19 . . . Melee 32 | . . . 6 26 . . . . . . . Ram 2 | . . . . . 2 . . . . . . Kick 3 | . . . . . . . . . . 3 . Crush . | . . . . . . . . . . . . Escape Stasis . | . . . . . . . . . . . . Rewire 3 | . . . . . . 3 . . . . . Trap . | . . . . . . . . . . . . Miscellaneous . | . . . . . . . . . . . . Route ------- -11/Scrapyard -10/Materials -9/Materials -8/Materials -7/Factory (discovered 2 exits: *Fac / *Low) -6/Factory -6/Waste -6/Factory -5/Factory -5/Upper Caves -5/Warlord -4/Proximity Caves History --------- Turn | Location | Event 23 | -11/Scrapyard | Discovered new exit (range 15) 72 | -11/Scrapyard | Entered Materials 268 | -10/Materials | Lost 3 parts (1p1n1w) 324 | -10/Materials | Build established: Mutant 425 | -10/Materials | Discovered new exit (range 13) 471 | -10/Materials | Entered another Materials area 471 | -9/Materials | Evolved 2 slots: Utility x2 737 | -9/Materials | Discovered new exit (range 18) 773 | -9/Materials | Entered another Materials area 773 | -8/Materials | Evolved 2 slots: Propulsion x1, Utility x1 1089 | -8/Materials | Garrison activated, responded to threat 1426 | -8/Materials | Found Prototype Device 1427 | -8/Materials | Lost 5 parts (1n4u) 1696 | -8/Materials | Build established: Scavenger-Mutant 2001 | -8/Materials | Discovered new exit (range 15) 2082 | -8/Materials | Entered Factory 2082 | -7/Factory | Evolved 2 slots: Utility x2 2083 | -7/Factory | Identified Active Sensor Suite 2199 | -7/Factory | Repaired Broken Carbon-fiber Leg 2323 | -7/Factory | Discovered new exit (range 5) 2326 | -7/Factory | Identified exit to Lower Caves 2383 | -7/Factory | Build established: Scavenger-Skirmisher 2809 | -7/Factory | Build established: Scavenger-Assassin 2860 | -7/Factory | Garrison activated, responded to threat 2861 | -7/Factory | Fabricated Carbon-fiber Leg? 2947 | -7/Factory | Core integrity fell below 50% 2976 | -7/Factory | Lost 17 parts (3p5n5u4w) 3212 | -7/Factory | Core integrity fell below 20% 3334 | -7/Factory | Lost 3 parts (1n2w) 3378 | -7/Factory | Discovered new exit (range 11) 3384 | -7/Factory | Entered another Factory area 3384 | -6/Factory | Evolved 2 slots: Power x1, Propulsion x1 3795 | -6/Factory | Lost 3 parts (3n) 3798 | -6/Factory | Build established: Scout 3882 | -6/Factory | Sucked down chute 3882 | -6/Factory | Entered Waste 3883 | -6/Waste | Joined by Warlord forces that had cleared the area 3948 | -6/Waste | Discovered new exit (range 10) 4078 | -6/Waste | Entered Factory 4078 | -6/Factory | Accompanied by 20 allies 4360 | -6/Factory | Lost 6 allies 4436 | -6/Factory | Build established: Skirmisher 4571 | -6/Factory | Garrison activated, responded to threat 4649 | -6/Factory | Found Active Sensor Suite 4653 | -6/Factory | Lost 10 allies 4769 | -6/Factory | Discovered new exit (range 9) 4777 | -6/Factory | Identified exit to Factory 4779 | -6/Factory | Entered another Factory area 4779 | -5/Factory | Evolved 2 slots: Propulsion x2 4993 | -5/Factory | Build established: Mutant 5300 | -5/Factory | Build established: Skirmisher 5557 | -5/Factory | Discovered new exit (range 13) 5571 | -5/Factory | Identified exit to Upper Caves 5579 | -5/Factory | Entered Upper Caves 5598 | -5/Upper Caves | A Derelict revealed a hidden shortcut to "reach the base" 5606 | -5/Upper Caves | Identified exit to Warlord 5676 | -5/Upper Caves | Build established: Mutant 5815 | -5/Upper Caves | Entered Warlord 5859 | -5/Warlord | System corruption cleaned by Quarantine Array 6072 | -5/Warlord | Found Prototype Special Weapon 6072 | -5/Warlord | Identified RU-N14's Throwing Claymores v3 6075 | -5/Warlord | Found RU-N14's Throwing Claymores v3 6113 | -5/Warlord | Met Warlord 6138 | -5/Warlord | Warlord's base attacked by MAIN.C 6210 | -5/Warlord | Build established: Skirmisher 6488 | -5/Warlord | Warlord forces counterattacked 6557 | -5/Warlord | Spotted Executioner 6558 | -5/Warlord | Spotted Executioner 6572 | -5/Warlord | Lost 18 allies 6579 | -5/Warlord | Discovered new exit (range 14) 6589 | -5/Warlord | Entered Proximity Caves 6619 | -4/Proximity Caves | Lost 10 parts (2p3n4u1w) 6619 | -4/Proximity Caves | Lost 4 allies 6718 | -4/Proximity Caves | Attracted the attention of an 0b10 outpost 6722 | -4/Proximity Caves | Core integrity fell below 50% 6745 | -4/Proximity Caves | Learned Research terminal intel 6765 | -4/Proximity Caves | Core integrity fell below 20% 6787 | -4/Proximity Caves | Lost 6 parts (1p5n) 6789 | -4/Proximity Caves | Spotted B-86 Titan 6796 | -4/Proximity Caves | Destroyed by B-86 Titan with Matter Neutralizer Last Messages --------------- 06726_ Nuclear Pulse Thruster destroyed. 06729_ System corrupted: Component data lost. 06745_ Acquired derelict log, extracted data. Data stored: Research terminal intel. 06756_ Nuclear Pulse Thruster destroyed. 06774_ Searching scrap... 06774_ Found Unknown Wheel. 06774_ Found Adv. Cooling System. 06774_ Found Adv. ECM Suite. 06774_ Found Fusion Compressor. 06774_ Found 35 Matter. 06775_ Acquired Unknown Wheel. 06775_ Identified Centrium Wheel. 06776_ C-30 ARC bursts open, deploying its payload. 06776_ G-73 Enforcer unfolds itself. 06776_ G-67 Veteran unfolds itself. 06776_ B-60 Warrior unfolds itself. 06776_ I-47 Archangel unfolds itself. 06790_ System corrupted: IFF burst signal emitted. 06794_ Acquired Imp. Treads. Map ----- +----------------------------------------------------+ | ??????####??????## #???# ##?????# #??? ????? | | ???????????????## ##?# #?????# #???? ????? | | ???????????????# ## ####### ###??# ??### | | ???????????????# #?## ?## # | | ??????????????????## #?# ## | | ??????????????????# ######## #??# | | ??????????????????# ## ####??????# #??### | | ??????????????????# ?# ##?????????# #???## # | | ??????????????????# ?## #???????#### ##?## # | | ??????????????????# ??# #??????## ### | | ??????????????????# ??# #?????## !* % | | ??????????????????# ??# #?##??# !% # | | ??????????????????# ??# ## ##?## ### ## | | ??????????????????# ### #??######?### ##? | | ??????????????????# ### # #??????????## ##?? | | ?????????????????## ## #? #???????????# #??? | | ?????????????????# ## #???????????#####??? | | ?????????????????# ###????????????????? | | ????????????????## #????????????????? | | ????????????????# #????????????????? | | ???????????????## ### # ####????????????????? | | ???????????????# % ##### #???????????????????? | | ???????????????# ss## ## ######??????????????? | | ???????????????#; *#;;; BB #??????????????? | | ???????????????### %s BB #??????????????? | | ?????????????????## @ #??????????????? | | ??????????????????##; ### #?????????? | | ???????????????????### ##??? #?????????? | | ?????????????????????###????? ##?????????? | | ????????????????????????????? ? ##??????????? | | ????????????????????????????????? #???????????? | | ?????????????????????????????????????#???????????? | | ?????????????????????????????????????????????????? | | ?????????????????????????????????????????????????? | | ?????????????????????????????????????????????????? | | ?????????????????????????????????????????????????? | | ?????????????????????????????????????????????????? | | ?????????????????????????????????????????????????? | | ?????????????????????????????????????????????????? | | ?????????????????????????????????????????????????? | | ?????????????????????????????????????????????????? | | ?????????????????????????????????????????????????? | | ?????????????????????????????????????????????????? | | ?????????????????????????????????????????????????? | | ?????????????????????????????????????????????????? | | ?????????????????????????????????????????????????? | | ?????????????????????????????????????????????????? | | ?????????????????????????????????????????????????? | | ?????????????????????????????????????????????????? | | ?????????????????????????????????????????????????? | +----------------------------------------------------+ Best States ------------- Heat Dissipation 48 Energy Generation 32 Energy Capacity 1015 Matter Stores 300 Matter Capacity 300 Sight Range 22 Robot Scan Range 20 Terrain Scan Range 20 Terrain Scan Density 210 ECM Strength 2 Additional Mass Support 9 Armor Coverage 600 Weapon Shielding 66 Evasion (%) 60 Targeting Accuracy 8 Recoil Reduction 2 Salvage Targeting 2 Offensive Hacking 14 Item Schematics ----------------- Imp. Light Armor Plating | -7/Factory | Scanalyzed Mni. Grenade Launcher | -7/Factory | Scanalyzed System Restoration Module | -7/Factory | Scanalyzed Kinecellerator | -7/Factory | Scanalyzed Imp. Heat Sink | -7/Factory | Scanalyzed Rnf. Deuterium Engine | -7/Factory | Scanalyzed Carbon-fiber Leg | -7/Factory | Scanalyzed Nuclear Pulse Array | -5/Factory | Scanalyzed Hyb. Deuterium Engine | -5/Factory | Scanalyzed Robot Schematics ------------------ None Fabricated ------------ Carbon-fiber Leg | x2 | -7/Factory Alien Tech Used ----------------- None Achievements -------------- A Powerful Ally? Backstab Charge!!! Just What I Needed Omniscient Cartographer Respectable Loadout We Are Legion Challenges ------------ None Game ------ Seed CentriumSupersonicCleaver Manual? 0 Play Time 02:10:18 Cumulative 27.9 hours Start 2024.03.05 @ 06:21:23 End 2024.03.05 @ 18:50:24 Sessions 2 Manual Loads 0 Difficulty Rogue Special Mode None Game No. 30 Rogue 30 Adventurer 0 Explorer 0 Win Type - Total 0 Types 0/0/0/0/0/0/0/0/0 Lore% 9 Gallery% 28 Achievement% 22 Wizard Run 0 Options --------- Layout 0 ASCII 0 Keyboard 0 Movement Numpad Keybinds 0 Fullscreen 1 Font 18/SmallcapsGlow Map View 76x50 Zoom Use 6% Tactical HUD 1 Map Filters NONE Filters NONE Steam 1 RUN: 6902cb6d-f8b0-45f1-a8ce-59a61fef555b